fUSD/lending_fUSD_20260703
["ID","MTS","AMOUNT","RATE_DAILY","PERIOD"]
[426951396,1783050641000,-232.255142,0.00026264,120]
[426951400,1783050641000,-1098.83214781,0.000263,2]
[426951389,1783050641000,-169.77517523,0.0002618,2]
[426951402,1783050641000,-676.0,0.00026315,5]
[426951418,1783050641000,-500.0,0.00026599,2]
[426951404,1783050641000,-686.0,0.00026359,5]
[426951410,1783050641000,-2000.0,0.00026492,2]
[426951407,1783050641000,-1087.29619355,0.00026453,2]
[426951409,1783050641000,-151.0,0.00026489,7]
[426951408,1783050641000,-679.0,0.00026468,5]
[426951412,1783050641000,-2993.27,0.00026591,2]
[426951413,1783050641000,-24259.78,0.00026591,2]
[426951414,1783050641000,-513.28637883,0.00026599,2]
[426951411,1783050641000,-683.0,0.00026535,5]
[426951422,1783050641000,-1098.83214781,0.000266,2]
[426951415,1783050641000,-500.0,0.00026599,2]
[426951417,1783050641000,-500.0,0.00026599,2]
[426951395,1783050641000,-686.0,0.00026241,5]
[426951406,1783050641000,-688.0,0.00026409,5]
[426951388,1783050641000,-155.36290438,0.0002618,2]
[426951359,1783050641000,-151.0,0.000258,2]
[426951386,1783050641000,-306.72555555,0.0002618,2]
[426951358,1783050641000,-589.774824,0.000258,2]
[426951361,1783050641000,-221.94320479,0.00025813,30]
[426951360,1783050641000,-169.6841,0.000258,2]
[426951363,1783050641000,-3414.83,0.00025937,2]
[426951365,1783050641000,-193.39,0.00026,7]
[426951373,1783050641000,-1098.83214781,0.000261,2]
[426951362,1783050641000,-284.91834074,0.00025842,2]
[426951366,1783050641000,-12629.38091925,0.00026,10]
[426951364,1783050641000,-613.87319993,0.0002599,2]
[426951367,1783050641000,-150.0,0.00026014,5]
[426951368,1783050641000,-501.15986951,0.00026034,2]
[426951371,1783050641000,-1000.0,0.00026093,2]
[426951369,1783050641000,-1445.49,0.00026074,2]
[426951397,1783050641000,-507.863437,0.00026264,120]
[426951370,1783050641000,-530.67999984,0.00026081,2]
[426951375,1783050641000,-881.23,0.00026118,2]
[426951376,1783050641000,-674.0,0.00026145,5]
[426951379,1783050641000,-202.60398917,0.0002618,2]
[426951380,1783050641000,-168.00147765,0.0002618,2]
[426951384,1783050641000,-395.29406347,0.0002618,2]
[426951374,1783050641000,-181.53,0.00026105,7]
[426951383,1783050641000,-173.1482774,0.0002618,2]
[426951385,1783050641000,-300.13265057,0.0002618,2]
[426951378,1783050641000,-672.0,0.00026164,5]
[426951381,1783050641000,-200.13578717,0.0002618,2]
[426951382,1783050641000,-353.75263754,0.0002618,2]
[426951377,1783050641000,-693.26,0.00026153,2]
[426951387,1783050641000,-324.89899083,0.0002618,2]
[426951372,1783050641000,-10379.30332143,0.000261,2]
[426951421,1783050641000,-10379.30332143,0.000266,2]
[426951478,1783050641000,-500.0,0.00027,7]
[426951420,1783050641000,-500.0,0.00026599,2]
[426951449,1783050641000,-502.4845754,0.00026799,2]
[426951450,1783050641000,-300.0,0.00026799,10]
[426951456,1783050641000,-884.089772,0.000268,2]
[426951453,1783050641000,-2190856.74902083,0.000268,2]
[426951454,1783050641000,-10379.30332143,0.000268,2]
[426951455,1783050641000,-151.0,0.000268,2]
[426951451,1783050641000,-300.0,0.00026799,10]
[426951452,1783050641000,-414.19711406,0.00026799,10]
[426951463,1783050641000,-186.19985,0.000268,2]
[426951462,1783050641000,-186.19985,0.000268,2]
[426951475,1783050641000,-500.0,0.00027,7]
[426951464,1783050641000,-589.774824,0.000268,2]
[426951473,1783050641000,-491.0,0.00026993,2]
[426951461,1783050641000,-153.945034,0.000268,2]
[426951465,1783050641000,-186.19985,0.000268,2]
[426951472,1783050641000,-663.0,0.00026951,5]
[426951468,1783050641000,-589.774824,0.000268,2]
[426951469,1783050641000,-589.774824,0.000268,2]
[426951466,1783050641000,-589.774824,0.000268,2]
[426951470,1783050641000,-151.0,0.000268,2]
[426951471,1783050641000,-674.0,0.00026801,5]
[426951477,1783050641000,-500.0,0.00027,7]
[426951479,1783050641000,-500.0,0.00027,7]
[426951480,1783050641000,-500.0,0.00027,7]
[426951481,1783050641000,-500.0,0.00027,7]
[426951485,1783050641000,-500.0,0.00027,7]
[426951416,1783050641000,-527.90478303,0.00026599,2]
[426951482,1783050641000,-500.0,0.00027,7]
[426951467,1783050641000,-186.19985,0.000268,2]
[426951459,1783050641000,-884.089772,0.000268,2]
[426951484,1783050641000,-500.0,0.00027,7]
[426951458,1783050641000,-884.089772,0.000268,2]
[426951460,1783050641000,-151.0,0.000268,2]
[426951423,1783050641000,-678.0,0.00026612,5]
[426951427,1783050641000,-4390.92323963,0.00026701,2]
[426951425,1783050641000,-151.77330633,0.000267,2]
[426951426,1783050641000,-2774.22247009,0.000267,2]
[426951430,1783050641000,-531.11112722,0.0002679,120]
[426951433,1783050641000,-637.09344867,0.00026799,2]
[426951434,1783050641000,-500.0,0.00026799,2]
[426951431,1783050641000,-151.0,0.00026797,7]
[426951432,1783050641000,-151.0,0.00026797,7]
[426951424,1783050641000,-6836.9661,0.00026699,2]
[426951429,1783050641000,-3000.0,0.0002679,120]
[426951428,1783050641000,-664.0,0.00026703,5]
[426951435,1783050641000,-500.0,0.00026799,2]
[426951419,1783050641000,-500.0,0.00026599,2]
[426951437,1783050641000,-500.0,0.00026799,2]
[426951448,1783050641000,-500.0,0.00026799,2]
[426951457,1783050641000,-884.089772,0.000268,2]
[426951442,1783050641000,-532.87357416,0.00026799,2]
[426951446,1783050641000,-500.0,0.00026799,2]
[426951443,1783050641000,-500.0,0.00026799,2]
[426951444,1783050641000,-500.0,0.00026799,2]
[426951440,1783050641000,-445.79639571,0.00026799,2]
[426951441,1783050641000,-500.0,0.00026799,2]
[426951445,1783050641000,-500.0,0.00026799,2]
[426951439,1783050641000,-500.0,0.00026799,2]
[426951436,1783050641000,-500.0,0.00026799,2]
[426951447,1783050641000,-180.06,0.00026799,2]
[426951438,1783050641000,-500.0,0.00026799,2]
[426951522,1783050642000,-450.19897585,0.00027016,2]
[426951529,1783050642000,-187.36942356,0.00027016,2]
[426951524,1783050642000,-460.08833332,0.00027016,2]
[426951523,1783050642000,-204.27486247,0.00027016,2]
[426951520,1783050642000,-530.62895631,0.00027016,2]
[426951525,1783050642000,-487.34848624,0.00027016,2]
[426951519,1783050642000,-188.70387969,0.00027016,2]
[426951518,1783050642000,-246.68897737,0.00027016,2]
[426951528,1783050642000,-310.72580876,0.00027016,2]
[426951516,1783050642000,-336.00295529,0.00027016,2]
[426951526,1783050642000,-292.52464963,0.00027016,2]
[426951521,1783050642000,-592.9410952,0.00027016,2]
[426951531,1783050642000,-339.55035046,0.00027016,2]
[426951534,1783050642000,-150.0,0.00027054,5]
[426951530,1783050642000,-238.33655505,0.00027016,2]
[426951539,1783050642000,-150.55273775,0.0002726,4]
[426951538,1783050642000,-500.0,0.00027233,2]
[426951532,1783050642000,-222.13856046,0.00027016,2]
[426951540,1783050642000,-5654.7435,0.00027297,120]
[426951536,1783050642000,-163.4,0.00027115,120]
[426951537,1783050642000,-457.27743357,0.00027161,2]
[426951535,1783050642000,-10379.30332143,0.000271,2]
[426951542,1783050642000,-166.66,0.00027314,2]
[426951553,1783050642000,-398.571941,0.00027397,2]
[426951551,1783050642000,-398.571941,0.00027397,2]
[426951527,1783050642000,-281.26055968,0.00027016,2]
[426951552,1783050642000,-398.571941,0.00027397,2]
[426951533,1783050642000,-359.48810957,0.00027016,2]
[426951517,1783050642000,-400.27157434,0.00027016,2]
[426951502,1783050642000,-247.71367039,0.00027016,2]
[426951511,1783050642000,-224.18442476,0.00027016,2]
[426951543,1783050642000,-1604.87971452,0.0002732,2]
[426951489,1783050642000,-500.0,0.00027,7]
[426951491,1783050642000,-500.0,0.00027,7]
[426951486,1783050642000,-500.0,0.00027,7]
[426951488,1783050642000,-500.0,0.00027,7]
[426951487,1783050642000,-500.0,0.00027,7]
[426951503,1783050642000,-207.92037061,0.00027016,2]
[426951493,1783050642000,-500.0,0.00027,7]
[426951492,1783050642000,-500.0,0.00027,7]
[426951494,1783050642000,-548.99,0.00027,7]
[426951495,1783050642000,-217.96810301,0.00027005,2]
[426951496,1783050642000,-221224.76206906,0.00027016,2]
[426951497,1783050642000,-243.7401395,0.00027016,2]
[426951498,1783050642000,-210.84343539,0.00027016,2]
[426951499,1783050642000,-244.50178929,0.00027016,2]
[426951500,1783050642000,-205.85522392,0.00027016,2]
[426951501,1783050642000,-219.28456415,0.00027016,2]
[426951504,1783050642000,-244.68239681,0.00027016,2]
[426951505,1783050642000,-216.55037691,0.00027016,2]
[426951515,1783050642000,-248.93703023,0.00027016,2]
[426951512,1783050642000,-336.26381736,0.00027016,2]
[426951508,1783050642000,-189.60919054,0.00027016,2]
[426951506,1783050642000,-153.69655744,0.00027016,2]
[426951514,1783050642000,-405.20797834,0.00027016,2]
[426951507,1783050642000,-190.84963966,0.00027016,2]
[426951509,1783050642000,-219.27448257,0.00027016,2]
[426951510,1783050642000,-153.51031089,0.00027016,2]
[426951513,1783050642000,-188.27313755,0.00027016,2]
[426951545,1783050642000,-1500.0,0.00027397,2]
[426951490,1783050642000,-500.0,0.00027,7]
[426951544,1783050642000,-196.57537348,0.00027397,2]
[426951590,1783050642000,-189.98310441,0.00027574,2]
[426951591,1783050642000,-215.04563121,0.00027574,2]
[426951592,1783050642000,-433.10075382,0.00027574,2]
[426951594,1783050642000,-167.41155282,0.00027574,2]
[426951596,1783050642000,-158.99206281,0.00027574,2]
[426951602,1783050642000,-221.78746758,0.00027574,2]
[426951593,1783050642000,-214.72696143,0.00027574,2]
[426951599,1783050642000,-208.59585827,0.00027574,2]
[426951603,1783050642000,-380.10133501,0.00027574,2]
[426951601,1783050642000,-205.33876426,0.00027574,2]
[426951604,1783050642000,-152.66265455,0.00027574,2]
[426951605,1783050642000,-487.48027901,0.00027574,2]
[426951606,1783050642000,-374.3804753,0.00027574,2]
[426951607,1783050642000,-166.05559641,0.00027574,2]
[426951608,1783050642000,-182.73311069,0.00027574,2]
[426951615,1783050642000,-201.81985557,0.00027574,2]
[426951610,1783050642000,-245.03891909,0.00027574,2]
[426951614,1783050642000,-208.78698868,0.00027574,2]
[426951613,1783050642000,-307.39311488,0.00027574,2]
[426951612,1783050642000,-291.00074352,0.00027574,2]
[426951609,1783050642000,-218.89427824,0.00027574,2]
[426951611,1783050642000,-156.73683637,0.00027574,2]
[426951616,1783050642000,-198.37483562,0.00027574,2]
[426951619,1783050642000,-307.02062179,0.00027574,2]
[426951618,1783050642000,-438.54896515,0.00027574,2]
[426951617,1783050642000,-230.323466,0.00027574,2]
[426951541,1783050642000,-221.0955995,0.000273,30]
[426951586,1783050642000,-489.36479362,0.00027574,2]
[426951588,1783050642000,-200.14913514,0.00027574,2]
[426951620,1783050642000,-448.36884951,0.00027574,2]
[426951573,1783050642000,-411.71044783,0.00027573,2]
[426951549,1783050642000,-398.571941,0.00027397,2]
[426951548,1783050642000,-398.571941,0.00027397,2]
[426951550,1783050642000,-398.571941,0.00027397,2]
[426951546,1783050642000,-151.915036,0.00027397,2]
[426951554,1783050642000,-398.571941,0.00027397,2]
[426951557,1783050642000,-4977.79,0.00027397,10]
[426951556,1783050642000,-5973.35,0.00027397,10]
[426951559,1783050642000,-278.876301,0.00027397,2]
[426951560,1783050642000,-278.876301,0.00027397,2]
[426951561,1783050642000,-262.33,0.000274,7]
[426951564,1783050642000,-10379.30332143,0.000274,2]
[426951563,1783050642000,-1060.2,0.000274,7]
[426951565,1783050642000,-457.27743357,0.00027435,2]
[426951558,1783050642000,-4148.16,0.00027397,10]
[426951555,1783050642000,-398.571941,0.00027397,2]
[426951577,1783050642000,-438.56912831,0.00027573,2]
[426951562,1783050642000,-185.09,0.000274,7]
[426951574,1783050642000,-489.00357859,0.00027573,2]
[426951583,1783050642000,-495.42734079,0.00027574,2]
[426951570,1783050642000,-175.13771343,0.00027573,2]
[426951572,1783050642000,-421.68687078,0.00027573,2]
[426951571,1783050642000,-154.64660227,0.00027573,2]
[426951585,1783050642000,-448.5798272,0.00027574,2]
[426951581,1783050642000,-377.79722456,0.00027573,2]
[426951582,1783050642000,-340.11317397,0.00027574,2]
[426951579,1783050642000,-200.96888899,0.00027573,2]
[426951567,1783050642000,-286.05,0.00027553,2]
[426951568,1783050642000,-205.32,0.00027553,2]
[426951584,1783050642000,-415.84074122,0.00027574,2]
[426951660,1783050643000,-251.98546218,0.000276,5]
[426951656,1783050643000,-166.63,0.0002759,30]
[426951662,1783050643000,-667.0,0.000276,5]
[426951661,1783050643000,-664.0,0.000276,5]
[426951655,1783050643000,-150.44,0.00027589,30]
[426951665,1783050643000,-530.67999984,0.00027636,2]
[426951664,1783050643000,-252.89667373,0.000276,5]
[426951653,1783050643000,-197.9,0.00027588,30]
[426951651,1783050643000,-444.27712093,0.00027574,2]
[426951658,1783050643000,-744.08,0.00027591,30]
[426951654,1783050643000,-202.18,0.00027589,30]
[426951649,1783050643000,-476.6731101,0.00027574,2]
[426951676,1783050643000,-570.0,0.0002784,2]
[426951659,1783050643000,-309.03865155,0.00027593,2]
[426951663,1783050643000,-151.0,0.000276,5]
[426951667,1783050643000,-211.60544451,0.00027709,5]
[426951677,1783050643000,-5000.0,0.00027862,7]
[426951669,1783050643000,-1755.27632808,0.00027739,2]
[426951673,1783050643000,-744.08,0.00027747,7]
[426951672,1783050643000,-786.92,0.00027747,7]
[426951668,1783050643000,-457.27743357,0.00027709,2]
[426951670,1783050643000,-197.9,0.00027744,7]
[426951666,1783050643000,-10379.30332143,0.000277,2]
[426951674,1783050643000,-1468.99898782,0.00027788,2]
[426951671,1783050643000,-202.18,0.00027745,7]
[426951642,1783050643000,-168.13190868,0.00027574,2]
[426951657,1783050643000,-786.92,0.00027591,30]
[426951645,1783050643000,-585.04929927,0.00027574,2]
[426951631,1783050643000,-600.40736151,0.00027574,2]
[426951648,1783050643000,-374.73884712,0.00027574,2]
[426951689,1783050643000,-240.0,0.00028,2]
[426951621,1783050643000,-415.55426177,0.00027574,2]
[426951625,1783050643000,-174.88246734,0.00027574,2]
[426951622,1783050643000,-376.54627511,0.00027574,2]
[426951624,1783050643000,-198.37920873,0.00027574,2]
[426951626,1783050643000,-607.81196752,0.00027574,2]
[426951627,1783050643000,-178.44976154,0.00027574,2]
[426951623,1783050643000,-200.03256785,0.00027574,2]
[426951628,1783050643000,-247.89079634,0.00027574,2]
[426951639,1783050643000,-240.1459015,0.00027574,2]
[426951638,1783050643000,-600.26530114,0.00027574,2]
[426951640,1783050643000,-408.54972493,0.00027574,2]
[426951646,1783050643000,-562.52111935,0.00027574,2]
[426951629,1783050643000,-497.87406047,0.00027574,2]
[426951636,1783050643000,-519.4448322,0.00027574,2]
[426951635,1783050643000,-707.50527508,0.00027574,2]
[426951633,1783050643000,-493.37795473,0.00027574,2]
[426951632,1783050643000,-162.36843023,0.00027574,2]
[426951634,1783050643000,-377.40775937,0.00027574,2]
[426951637,1783050643000,-790.58812694,0.00027574,2]
[426951643,1783050643000,-613.45111109,0.00027574,2]
[426951641,1783050643000,-381.69927933,0.00027574,2]
[426951647,1783050643000,-466.08871314,0.00027574,2]
[426951644,1783050643000,-649.79798166,0.00027574,2]
[426951652,1783050643000,-539.23216435,0.00027574,2]
[426951650,1783050643000,-509.32552569,0.00027574,2]
[426951630,1783050643000,-504.00443294,0.00027574,2]
[426951690,1783050643000,-159.32030284,0.00028,2]
[426951675,1783050643000,-150.44,0.00027824,7]
[426951678,1783050643000,-166.63,0.00027872,7]
[426951713,1783050643000,-457.27743357,0.00028257,2]
[426951712,1783050643000,-744.08,0.00028217,7]
[426951714,1783050643000,-150.44,0.00028294,30]
[426951719,1783050643000,-183.2926051,0.00028397,7]
[426951718,1783050643000,-1000.0,0.00028377,2]
[426951716,1783050643000,-1000.0,0.00028315,2]
[426951717,1783050643000,-150.0,0.00028355,5]
[426951715,1783050643000,-1000.0,0.00028315,2]
[426951720,1783050643000,-187.04687522,0.00028397,7]
[426951722,1783050643000,-166.63,0.00028436,30]
[426951732,1783050643000,-1000.0,0.00028626,2]
[426951724,1783050643000,-262.33,0.000285,7]
[426951721,1783050643000,-1060.2,0.000284,7]
[426951735,1783050643000,-1000.0,0.00028658,2]
[426951733,1783050643000,-1348.47843471,0.00028646,15]
[426951723,1783050643000,-1000.0,0.0002844,2]
[426951727,1783050643000,-457.27743357,0.00028531,2]
[426951725,1783050643000,-1000.0,0.00028502,2]
[426951726,1783050643000,-150.44,0.00028529,7]
[426951728,1783050643000,-1000.0,0.00028564,2]
[426951729,1783050643000,-84718.77069356,0.000286,7]
[426951730,1783050643000,-151.0,0.000286,7]
[426951731,1783050643000,-278.876301,0.000286,7]
[426951736,1783050643000,-1000.0,0.00028689,2]
[426951739,1783050643000,-618.50987292,0.00028733,30]
[426951738,1783050643000,-184.14156129,0.00028721,2]
[426951679,1783050643000,-197.9,0.00027901,2]
[426951711,1783050643000,-786.92,0.00028217,7]
[426951710,1783050643000,-202.18,0.00028216,7]
[426951734,1783050643000,-1000.0,0.00028658,2]
[426951708,1783050643000,-166.63,0.00028154,2]
[426951684,1783050643000,-158.0,0.00028,2]
[426951709,1783050643000,-197.9,0.00028215,7]
[426951681,1783050643000,-786.92,0.00027904,2]
[426951737,1783050643000,-166.63,0.00028718,7]
[426951686,1783050643000,-166.0,0.00028,2]
[426951691,1783050643000,-152.0,0.00028,2]
[426951680,1783050643000,-202.18,0.00027902,2]
[426951685,1783050643000,-255.0,0.00028,2]
[426951682,1783050643000,-744.08,0.00027904,2]
[426951687,1783050643000,-191.0,0.00028,2]
[426951688,1783050643000,-266.0,0.00028,2]
[426951692,1783050643000,-234.0,0.00028,2]
[426951696,1783050643000,-221.09401685,0.00028,2]
[426951694,1783050643000,-10171.30666664,0.00028,5]
[426951683,1783050643000,-457.27743357,0.00027983,2]
[426951697,1783050643000,-160.0,0.00028,2]
[426951705,1783050643000,-884.38159385,0.00028131,2]
[426951693,1783050643000,-157.0,0.00028,2]
[426951706,1783050643000,-766.81388887,0.00028131,2]
[426951703,1783050643000,-786.92,0.0002806,30]
[426951704,1783050643000,-744.08,0.0002806,30]
[426951698,1783050643000,-643.0,0.00028,2]
[426951707,1783050643000,-812.24747707,0.00028131,2]
[426951700,1783050643000,-197.9,0.00028058,30]
[426951699,1783050643000,-22500.0,0.00028,2]
[426951702,1783050643000,-202.18,0.00028059,30]
[426951695,1783050643000,-50000.0,0.00028,2]
[426951701,1783050643000,-150.44,0.00028059,2]
[426951761,1783050644000,-255.0,0.00029,2]
[426951756,1783050644000,-974.69697248,0.00028967,2]
[426951753,1783050644000,-217.022,0.00028936,2]
[426951757,1783050644000,-39168.04628182,0.0002897,6]
[426951750,1783050644000,-1279.0,0.00028936,2]
[426951767,1783050644000,-173.17,0.00029,7]
[426951754,1783050644000,-1000.0,0.00028938,2]
[426951755,1783050644000,-920.17666664,0.00028967,2]
[426951758,1783050644000,-218.37585953,0.00028977,7]
[426951764,1783050644000,-266.0,0.00029,2]
[426951759,1783050644000,-151.77330633,0.0002898,2]
[426951752,1783050644000,-951.141,0.00028936,2]
[426951760,1783050644000,-158.0,0.00029,2]
[426951740,1783050644000,-1000.0,0.00028751,2]
[426951763,1783050644000,-191.0,0.00029,2]
[426951751,1783050644000,-150.0,0.00028936,2]
[426951749,1783050644000,-1363.0,0.00028936,2]
[426951744,1783050644000,-1000.0,0.00028875,2]
[426951746,1783050644000,-166.007,0.00028936,2]
[426951747,1783050644000,-3567.0,0.00028936,2]
[426951748,1783050644000,-337.0,0.00028936,2]
[426951743,1783050644000,-1000.0,0.00028813,2]
[426951745,1783050644000,-1848.19670857,0.0002888,60]
[426951742,1783050644000,-457.27743357,0.00028805,2]
[426951741,1783050644000,-504.08,0.00028767,2]
[426951770,1783050644000,-157.8312139,0.00029,2]
[426951762,1783050644000,-150.0,0.00029,30]
[426951766,1783050644000,-10000.0,0.00029,2]
[426951790,1783050644000,-500.0,0.00014999,2]
[426951774,1783050644000,-475.41,0.00029,30]
[426951796,1783050644000,-50.01040691,0.00014999,2]
[426951795,1783050644000,-625.63458302,0.00014999,2]
[426951794,1783050644000,-11430.8072554,0.00029,5]
[426951793,1783050644000,-500.0,0.00014999,2]
[426951791,1783050644000,-383.35754005,0.00029,5]
[426951789,1783050644000,-402.00835186,0.00029,5]
[426951792,1783050644000,-419.17316,0.00029,5]
[426951782,1783050644000,-1000.0,0.00029,2]
[426951776,1783050644000,-158.25,0.00029,115]
[426951777,1783050644000,-677.63,0.00029,30]
[426951784,1783050644000,-580.08402442,0.00029,2]
[426951787,1783050644000,-2091.96639196,0.00029,2]
[426951783,1783050644000,-19848.05030008,0.00029,2]
[426951785,1783050644000,-157.53857628,0.00029,2]
[426951779,1783050644000,-165.54,0.00029,2]
[426951781,1783050644000,-150.79,0.00029,7]
[426951775,1783050644000,-421.31,0.00029,30]
[426951768,1783050644000,-158.0,0.00029,2]
[426951765,1783050644000,-240.0,0.00029,2]
[426951772,1783050644000,-5638.22,0.00029,115]
[426951773,1783050644000,-5389.42,0.00029,115]
[426951771,1783050644000,-150.0,0.00029,7]
[426951778,1783050644000,-580.21,0.00029,30]
[426951788,1783050644000,-2227.69026084,0.00029,5]
[426951780,1783050644000,-221.97,0.00029,30]
[426951786,1783050644000,-1018.54,0.00029,2]
[426951769,1783050644000,-234.0,0.00029,2]
[426951801,1783050645000,-74.15646611,0.00014999,2]
[426951798,1783050645000,-500.0,0.00014999,2]
[426951800,1783050645000,-500.0,0.00014999,2]
[426951799,1783050645000,-500.0,0.00014999,2]
[426951797,1783050645000,-449.98959309,0.00014999,2]
[426951811,1783050646000,-500.0,0.00014999,2]
[426951807,1783050646000,-425.84353389,0.00014999,2]
[426951808,1783050646000,-74.15646611,0.00014999,2]
[426951809,1783050646000,-425.84353389,0.00014999,2]
[426951812,1783050646000,-500.0,0.00014999,2]
[426951815,1783050646000,-500.0,0.00014999,2]
[426951814,1783050646000,-500.0,0.00014999,2]
[426951810,1783050646000,-500.0,0.00014999,2]
[426951816,1783050646000,-278.11555672,0.00021478,2]
[426951817,1783050646000,-288.49,0.00021478,2]
[426951813,1783050646000,-500.0,0.00014999,2]
[426951822,1783051025000,-500.0,0.00014999,2]
[426951820,1783051025000,-150.0,0.00014998,2]
[426951824,1783051025000,-500.0,0.00014999,2]
[426951823,1783051025000,-500.0,0.00014999,2]
[426951821,1783051025000,-500.0,0.00014999,2]
[426951829,1783051026000,-500.0,0.00014999,2]
[426951826,1783051026000,-500.0,0.00014999,2]
[426951825,1783051026000,-500.0,0.00014999,2]
[426951827,1783051026000,-500.0,0.00014999,2]
[426951828,1783051026000,-500.0,0.00014999,2]
[426951830,1783051026000,-479.01035539,0.00014999,2]
[426951832,1783051026000,-500.0,0.00014999,2]
[426951835,1783051026000,-500.0,0.00014999,2]
[426951833,1783051026000,-500.0,0.00014999,2]
[426951834,1783051026000,-500.0,0.00014999,2]
[426951837,1783051026000,-500.0,0.00014999,2]
[426951836,1783051026000,-500.0,0.00014999,2]
[426951838,1783051026000,-427.89559781,0.00014999,2]
[426951839,1783051026000,-500.0,0.00014999,2]
[426951840,1783051026000,-443.0940468,0.00014999,2]
[426951831,1783051026000,-500.0,0.00014999,2]
[426951845,1783051027000,-500.0,0.00014999,2]
[426951841,1783051027000,-56.9059532,0.00014999,2]
[426951842,1783051027000,-500.0,0.00014999,2]
[426951844,1783051027000,-500.0,0.00014999,2]
[426951843,1783051027000,-500.0,0.00014999,2]
[426951846,1783051027000,-500.0,0.00014999,2]
[426951848,1783051027000,-500.0,0.00014999,2]
[426951847,1783051027000,-500.0,0.00014999,2]
[426951850,1783051027000,-500.0,0.00014999,2]
[426951849,1783051027000,-500.0,0.00014999,2]
[426951851,1783051027000,-500.0,0.00014999,2]
[426951852,1783051027000,-500.0,0.00014999,2]
[426951854,1783051027000,-235.45541132,0.00015,2]
[426951853,1783051027000,-634.13990841,0.00014999,2]
[426951855,1783051111000,-400.0,0.00015,2]
[426951857,1783051180000,-500.0,0.00015,2]
[426951856,1783051180000,-1414.263957,0.00014985,2]
[426951861,1783051185000,511.85,0.00014999,2]
[426951860,1783051185000,511.85,0.00014999,2]
[426951859,1783051185000,511.85,0.00014999,2]
[426951858,1783051185000,511.85,0.00014999,2]
[426951862,1783051186000,511.85,0.00014999,2]
[426951863,1783051186000,511.85,0.00014999,2]
[426951864,1783051186000,14.636043,0.00014999,2]
[426951866,1783051190000,-511.85,0.00014999,2]
[426951873,1783051190000,-511.85,0.00014999,2]
[426951872,1783051190000,-511.85,0.00014999,2]
[426951871,1783051190000,-511.85,0.00014999,2]
[426951870,1783051190000,-511.85,0.00014999,2]
[426951868,1783051190000,-511.85,0.00014999,2]
[426951869,1783051190000,-511.85,0.00014999,2]
[426951867,1783051190000,-511.85,0.00014999,2]
[426951865,1783051190000,-497.213957,0.00014999,2]
[426951874,1783051208000,-150.0,0.000151,3]
[426951875,1783051210000,171.39,0.00015973,30]
[426951876,1783051211000,171.39,0.00019973,60]
[426951877,1783051218000,-200.0,0.00015,2]
[426951878,1783051274000,-500.0,0.00014999,2]
[426951879,1783051274000,-500.0,0.00014999,2]
[426951881,1783051274000,-487.91857528,0.00014999,2]
[426951882,1783051274000,-151.0,0.00015,2]
[426951880,1783051274000,-500.0,0.00014999,2]
[426951883,1783051275000,182.88835435,0.00015,2]
[426951885,1783051556000,-782.3293832,0.00014999,2]
[426951908,1783051674000,-161.13706357,0.00015049,2]
[426951909,1783051674000,-150.86293643,0.000151,3]
[426951910,1783051736000,-150.0,0.000151,7]
[426951912,1783051737000,-150.0,0.000151,7]
[426951911,1783051737000,-150.0,0.000151,7]
[426951966,1783051832000,-150.0,0.00016912,7]